bitfinex-derivatives/quotes_SOLF0:USTF0_20241226
["timestamp","ask_amount","ask_price","bid_price","bid_amount"]
[1735188453701,2.5627,195.27,195.22,2.5633]
[1735188453996,4.6537,195.3,195.22,2.5633]
[1735188454701,1.0,195.43,195.22,11.31663639]
[1735188454896,11.31663639,195.36,195.22,11.31663639]
[1735188455100,2.5624,195.3,195.21,2.5633]
[1735188455399,11.31663639,195.33,195.21,2.5633]
[1735188455595,4.7787,195.32,195.2,3.22]
[1735188455802,4.7787,195.32,195.23,2.5632]
[1735188457401,2.5625,195.29,195.23,2.5632]
[1735188458599,4.7787,195.32,195.2,3.22]
[1735188458802,2.5623,195.3,195.24,2.5631]
[1735188459697,2.5622,195.31,195.25,2.5629]
[1735188460398,2.5623,195.3,195.25,2.5629]
[1735188464895,4.7787,195.32,195.24,2.563]
[1735188464896,2.5625,195.29,195.24,2.563]
[1735188465103,4.7787,195.32,195.19,11.31663639]
[1735188465307,4.7787,195.32,195.19,14.53663639]
[1735188465507,4.7787,195.32,195.21,2.5633]
[1735188465908,2.5629,195.26,195.21,2.5633]
[1735188467203,4.7787,195.32,195.2,2.5636]
[1735188467407,11.31663639,195.27,195.17,1.5873]
[1735188467609,11.31663639,195.24,195.11,3.2562]
[1735188467910,7.8543,195.23,195.12,2.5646]
[1735188468300,2.5643,195.15,195.11,1.5949]
[1735188471412,4.6343,195.23,195.13,2.5645]
[1735188471605,4.6343,195.23,195.11,1.5949]
[1735188471809,3.22,195.22,195.11,1.5949]
[1735188472313,3.22,195.21,195.11,1.5949]
[1735188472508,2.5639,195.19,195.14,2.5643]
[1735188473413,2.5636,195.2,195.14,2.5643]
[1735188474917,3.22,195.21,195.14,2.5643]
[1735188475108,2.5638,195.19,195.14,2.5643]
[1735188477819,2.5638,195.19,195.11,1.5949]
[1735188478009,2.5638,195.19,195.13,2.5645]
[1735188478209,2.5638,195.19,195.13,9.82977615]
[1735188480424,3.22,195.24,195.17,7.26527615]
[1735188480720,7.26527615,195.24,195.16,7.26527615]
[1735188481222,7.26527615,195.22,195.05,24.4240114]
[1735188481522,7.26527615,195.2,195.12,7.26527615]
[1735188481714,3.22,195.19,195.12,7.26527615]
[1735188482111,2.5642,195.16,195.12,7.26527615]
[1735188484124,3.22,195.19,195.12,7.26527615]
[1735188484322,2.5643,195.15,195.12,7.26527615]
[1735188486319,2.5644,195.14,195.1,9.83017615]
[1735188486617,7.26527615,195.14,195.08,7.26527615]
[1735188486824,7.26527615,195.16,195.08,7.26527615]
[1735188487019,2.5647,195.12,195.08,9.83037615]
[1735188489319,2.5647,195.12,195.08,7.26527615]
[1735188489721,7.26527615,195.14,195.0,4.8316]
[1735188489930,7.26527615,195.1,195.0,4.8316]
[1735188490225,10.48527615,195.1,195.02,7.26527615]
[1735188490422,2.5656,195.05,195.02,7.26527615]
[1735188490724,7.26527615,195.08,195.02,7.26527615]
[1735188491321,7.26527615,195.08,194.99,2.5662]
[1735188491521,7.26527615,195.08,195.01,7.26527615]
[1735188492425,2.5653,195.07,195.01,9.83137615]
[1735188492831,2.5653,195.07,195.01,7.26527615]
[1735188493528,2.5652,195.08,195.02,2.5659]
[1735188493731,2.5652,195.08,195.03,7.26527615]
[1735188494623,2.5652,195.08,195.03,9.83107615]
[1735188495327,10.48527615,195.1,195.01,7.26527615]
[1735188495629,7.26527615,195.08,195.01,7.26527615]
[1735188496126,7.26527615,195.06,194.95,1.5431]
[1735188496329,7.26527615,195.06,194.97,7.26527615]
[1735188496527,2.5661,195.02,194.96,2.5667]
[1735188496729,10.48527615,195.04,194.96,7.26527615]
[1735188497030,7.26527615,195.02,194.95,7.26527615]
[1735188497532,7.26527615,195.0,194.93,7.26527615]
[1735188498238,7.26527615,194.98,194.91,7.26527615]
[1735188498430,10.48527615,194.98,194.91,7.26527615]
[1735188499328,1.6477,195.04,194.93,7.26527615]
[1735188499329,7.26527615,195.0,194.93,7.26527615]
[1735188499528,1.6477,195.04,194.97,7.26527615]
[1735188499529,3.22,195.03,194.97,7.26527615]
[1735188500233,3.22,195.03,194.94,11.37128819]
[1735188500433,2.566,195.02,194.97,2.5666]
[1735188501030,3.22,195.03,194.99,2.5663]
[1735188501245,5.8048,195.05,194.94,11.37128819]
[1735188501246,4.1989,195.05,194.94,11.37128819]
[1735188501431,11.37128819,195.1,194.97,11.37128819]
[1735188501631,3.22,195.09,194.97,11.37128819]
[1735188501828,2.5654,195.07,194.97,11.37128819]
[1735188502033,3.22,195.09,194.95,3.22]
[1735188502034,3.22,195.09,194.95,14.59128819]
[1735188502238,11.37128819,195.07,194.95,14.59128819]
[1735188502536,11.37128819,195.07,194.99,2.5664]
[1735188503039,11.37128819,195.1,194.95,3.22]
[1735188503233,3.22,195.09,194.98,11.37128819]
[1735188503840,5.7851,195.09,195.03,2.5657]
[1735188504035,3.22,195.09,194.98,11.37128819]
[1735188504540,5.7851,195.09,195.04,2.5657]
[1735188505641,3.22,195.1,195.06,2.5654]
[1735188506041,3.22,195.1,194.99,3.2362]
[1735188506644,3.22,195.1,194.99,4.8246]
[1735188506843,5.7849,195.1,195.05,2.5655]
[1735188507240,3.22,195.1,195.01,11.37128819]
[1735188507543,2.5648,195.11,195.01,11.37128819]
[1735188507743,7.9115,195.13,195.01,11.37128819]
[1735188508540,2.5647,195.12,195.01,11.37128819]
[1735188508841,3.22,195.13,195.04,11.37128819]
[1735188509044,3.22,195.15,195.04,11.37128819]
[1735188510550,3.22,195.16,195.04,11.37128819]
[1735188510740,3.22,195.16,195.02,3.22]
[1735188510937,2.5649,195.11,195.02,3.22]
[1735188511237,14.62288819,195.15,195.01,11.37128819]
[1735188512145,3.2516,195.15,195.01,11.37128819]
[1735188513142,2.5647,195.12,195.01,11.37128819]
[1735188513544,3.2516,195.15,195.04,11.37128819]
[1735188514143,2.5644,195.15,195.1,2.5648]
[1735188514340,3.22,195.16,195.04,11.37128819]
[1735188515446,3.22,195.16,195.07,2.5653]
[1735188515748,3.22,195.16,195.04,11.37128819]
[1735188515949,2.5646,195.13,195.04,11.37128819]
[1735188516744,3.22,195.16,195.04,11.37128819]
[1735188517044,2.5647,195.12,195.04,11.37128819]
[1735188517742,2.5647,195.12,195.0,3.22]
[1735188517743,2.5649,195.1,195.01,11.37128819]
[1735188518345,2.5652,195.08,195.01,11.37128819]
[1735188518549,2.5652,195.08,194.99,4.8246]
[1735188518745,1.6759,195.12,194.99,4.8246]
[1735188519052,3.22,195.11,194.99,4.8246]
[1735188519250,1.6759,195.12,194.99,4.8246]
[1735188519551,2.5649,195.11,195.06,2.5653]
[1735188520549,4.8959,195.12,195.06,2.5653]
[1735188521454,4.8959,195.12,194.99,4.8246]
[1735188521746,3.22,195.12,195.01,11.37128819]
[1735188522146,3.22,195.12,195.08,2.5651]
[1735188522349,2.5644,195.14,195.01,11.37128819]
[1735188523047,3.22,195.15,195.01,11.37128819]
[1735188523247,5.7843,195.15,195.01,11.37128819]
[1735188524052,5.7843,195.15,195.09,2.5649]
[1735188524253,3.22,195.15,195.09,2.5649]
[1735188524447,2.5644,195.14,195.09,2.5649]
[1735188527349,5.7843,195.15,195.1,2.5649]
[1735188527550,3.2308,195.17,195.04,11.37128819]
[1735188527755,3.22,195.16,195.04,11.37128819]
[1735188527957,3.22,195.16,195.04,14.59128819]
[1735188528553,2.5644,195.15,195.07,2.5652]
[1735188528751,3.22,195.16,195.04,14.59128819]
[1735188529063,2.5644,195.14,195.1,2.5649]
[1735188529457,3.22,195.16,195.1,2.5649]
[1735188529759,2.5643,195.15,195.1,2.5649]
[1735188531059,2.5644,195.14,195.1,2.5649]
[1735188531457,3.22,195.16,195.1,2.5649]
[1735188531653,11.37128819,195.21,195.13,2.5645]
[1735188531952,11.37128819,195.21,195.08,1.5329]
[1735188531953,3.22,195.2,195.08,1.5329]
[1735188532154,2.5638,195.19,195.1,11.37128819]
[1735188533059,2.5638,195.19,195.12,2.5646]
[1735188533255,3.22,195.2,195.1,11.37128819]
[1735188533462,3.22,195.2,195.1,14.59128819]
[1735188533757,3.22,195.2,195.15,2.5642]
[1735188533957,5.7837,195.2,195.1,14.59128819]
[1735188535557,2.5638,195.19,195.15,2.5642]
[1735188537662,3.22,195.2,195.1,14.59128819]
[1735188538067,2.5639,195.18,195.13,2.5645]
[1735188538460,2.5639,195.18,195.1,14.59128819]
[1735188538659,3.22,195.2,195.1,14.59128819]
[1735188538856,2.5638,195.19,195.1,14.59128819]
[1735188540166,2.5638,195.19,195.14,7.26473235]
[1735188540568,2.5638,195.19,195.15,2.5642]
[1735188544674,5.7836,195.2,195.16,2.5641]
[1735188544970,5.7836,195.2,195.14,7.26473235]
[1735188544971,3.22,195.2,195.14,7.26473235]
[1735188545172,3.1935,195.25,195.18,7.26473235]
[1735188545472,7.26473235,195.28,195.22,7.26473235]
[1735188545868,2.5628,195.26,195.23,2.5631]
[1735188546063,7.26473235,195.28,195.23,2.5631]
[1735188546267,9.82743235,195.28,195.23,2.5631]
[1735188546566,7.26473235,195.28,195.23,2.5631]
[1735188547673,2.5627,195.27,195.23,2.5631]
[1735188549769,7.26473235,195.28,195.24,2.563]
[1735188551471,9.82733235,195.28,195.23,2.5631]
[1735188553573,7.26473235,195.28,195.24,2.5631]
[1735188553875,3.22,195.29,195.24,2.5631]
[1735188555478,5.7825,195.29,195.24,2.5631]
[1735188557177,2.5628,195.27,195.22,9.82793235]
[1735188559383,2.5628,195.27,195.22,2.5632]
[1735188559882,7.26473235,195.24,195.16,7.26473235]
[1735188560082,7.26473235,195.18,195.09,4.7339]
[1735188560378,2.5645,195.13,195.09,8.85673235]
[1735188561884,2.5644,195.14,195.09,8.85673235]
[1735188563985,2.5647,195.12,195.06,9.83003235]
[1735188564182,7.26473235,195.14,195.06,9.83003235]
[1735188564781,2.5647,195.12,195.06,9.83003235]
[1735188565085,7.26473235,195.16,195.1,7.26473235]
[1735188565284,2.5643,195.15,195.1,7.26473235]
[1735188566078,1.5813,195.22,195.1,7.26473235]
[1735188566289,7.26473235,195.18,195.11,2.5648]
[1735188566490,7.26473235,195.18,195.1,7.26473235]
[1735188566691,10.48473235,195.18,195.1,7.26473235]
[1735188567288,2.5642,195.16,195.1,9.82953235]
[1735188567791,10.48473235,195.18,195.1,9.82953235]
[1735188569488,2.5643,195.15,195.1,9.82953235]
[1735188570289,7.26473235,195.2,195.12,7.26473235]
[1735188570496,13.71603235,195.22,195.14,7.26473235]
[1735188570791,10.48473235,195.24,195.16,7.26473235]
[1735188571093,9.82793235,195.24,195.18,7.26473235]
[1735188571591,9.82793235,195.24,195.18,9.82863235]
[1735188571592,2.5633,195.23,195.18,9.82863235]
[1735188572491,2.5633,195.22,195.18,7.26473235]
[1735188580899,7.26473235,195.24,195.16,7.26473235]
[1735188581097,7.26473235,195.22,195.16,7.26473235]
[1735188581600,2.5636,195.21,195.16,7.26473235]
[1735188581795,7.26473235,195.22,195.16,7.26473235]
[1735188582599,2.5637,195.2,195.16,7.26473235]
[1735188585991,2.5638,195.19,195.16,7.26473235]
[1735188587101,2.5639,195.18,195.16,7.26473235]
[1735188589798,7.26473235,195.24,195.16,7.26473235]
[1735188590008,2.564,195.17,195.16,7.26473235]
[1735188591501,3.22,195.26,195.12,7.26473235]
[1735188591502,7.26473235,195.18,195.12,7.26473235]
[1735188591804,7.26473235,195.14,195.06,7.26473235]
[1735188592014,7.26473235,195.12,195.06,7.26473235]
[1735188592305,7.26473235,195.1,195.0,11.7435038]
[1735188592505,7.26473235,195.1,195.02,7.26473235]
[1735188593306,2.5652,195.08,195.0,14.3097038]
[1735188593504,7.26473235,195.1,195.02,7.26473235]
[1735188594998,2.5654,195.06,195.02,7.26473235]
[1735188595204,7.26473235,195.08,195.0,7.26473235]
[1735188596103,2.5657,195.05,195.0,7.26473235]
[1735188600810,7.26473235,195.08,195.0,7.26473235]
[1735188601012,2.5658,195.04,195.0,7.26473235]
[1735188601407,2.5659,195.03,195.0,7.26473235]
[1735188602514,2.5661,195.02,195.0,7.26473235]
[1735188604214,2.5661,195.01,195.0,7.26473235]
[1735188604417,7.26473235,195.06,194.98,7.26473235]
[1735188606218,2.5662,195.01,194.98,7.26473235]
[1735188606416,7.26473235,195.04,194.96,7.26473235]
[1735188608114,2.5665,194.99,194.91,2.5674]
[1735188608326,7.26473235,195.02,194.95,7.26473235]
[1735188608327,10.48473235,195.02,194.95,7.26473235]
[1735188609215,2.5662,195.0,194.95,7.26473235]
[1735188609416,10.48473235,195.02,194.95,7.26473235]
[1735188610221,7.26473235,195.02,194.95,7.26473235]
[1735188610415,10.48473235,195.02,194.95,7.26473235]
[1735188610623,3.22,195.02,194.95,7.26473235]
[1735188610816,3.22,195.02,194.97,7.26473235]
[1735188611524,1.5491,195.08,194.99,7.26473235]
[1735188611722,1.5491,195.08,194.87,4.8742]
[1735188611723,1.5491,195.08,195.02,7.26473235]
[1735188612018,7.26473235,195.07,194.96,4.7727]
[1735188612216,7.26473235,195.05,194.99,7.26473235]
[1735188612420,7.26473235,195.05,194.97,7.26473235]
[1735188612621,7.26473235,195.03,194.94,2.567]
[1735188612813,7.26473235,195.01,194.94,9.83173235]
[1735188613012,7.26473235,194.99,194.92,7.26473235]
[1735188613523,2.5669,194.96,194.92,7.26473235]
[1735188613920,2.567,194.95,194.9,9.83223235]
[1735188615427,3.22,194.98,194.92,7.26473235]
[1735188615621,2.5668,194.96,194.92,7.26473235]
[1735188616024,3.22,194.98,194.92,7.26473235]
[1735188616219,2.5664,194.99,194.94,9.83173235]
[1735188616524,2.5664,194.99,194.96,7.26473235]
[1735188616722,10.48473235,195.03,194.96,7.26473235]
[1735188617526,2.5662,195.01,194.96,7.26473235]
[1735188620429,10.48473235,195.03,194.96,7.26473235]
[1735188620628,2.5662,195.0,194.96,7.26473235]
[1735188622531,7.26473235,195.01,194.92,7.26473235]
[1735188622726,7.26473235,194.97,194.9,7.26473235]
[1735188623128,2.567,194.95,194.9,9.83223235]
[1735188623531,2.5671,194.94,194.9,9.83223235]
[1735188628540,7.26473235,194.97,194.9,2.5675]
[1735188628741,2.5672,194.93,194.9,7.26473235]
[1735188630140,2.5672,194.93,194.9,9.83223235]
[1735188630641,2.5672,194.93,194.9,7.26473235]
[1735188631242,2.5672,194.93,194.9,9.83223235]
[1735188631443,2.5669,194.95,194.9,9.83223235]
[1735188632644,2.5672,194.93,194.88,2.5678]
[1735188632846,2.5672,194.93,194.9,7.26473235]
[1735188634242,2.5668,194.96,194.91,2.5674]
[1735188634948,3.22,194.98,194.91,2.5674]
[1735188635138,2.5669,194.95,194.91,2.5674]
[1735188636646,2.567,194.94,194.9,9.83223235]
[1735188638343,3.22,194.98,194.9,9.83223235]
[1735188638538,2.5669,194.95,194.9,9.83223235]
[1735188639445,3.22,194.98,194.82,63.58486051]
[1735188639649,7.26473235,194.97,194.9,7.26473235]
[1735188639950,7.26473235,194.97,194.88,9.83243235]
[1735188640851,2.567,194.95,194.88,9.83243235]
[1735188641045,7.26473235,194.97,194.88,7.26473235]
[1735188641241,7.26473235,194.97,194.9,7.26473235]
[1735188642141,2.567,194.95,194.9,9.83223235]
[1735188642543,2.5668,194.96,194.91,2.5673]
[1735188642852,3.22,194.98,194.91,2.5673]
[1735188644454,2.5669,194.95,194.91,2.5673]
[1735188648061,12.07883235,195.01,194.94,7.26473235]
[1735188648258,3.22,195.01,194.94,7.26473235]
[1735188648450,2.5666,194.98,194.94,7.26473235]
[1735188648647,10.48473235,195.01,194.94,7.26473235]
[1735188648850,10.48473235,195.01,194.89,3.22]
[1735188648851,7.26473235,194.99,194.89,3.22]
[1735188649052,2.567,194.95,194.91,7.26473235]
[1735188649254,10.48473235,195.01,194.93,7.26473235]
[1735188649655,2.5667,194.97,194.93,9.83193235]
[1735188649860,2.5667,194.97,194.93,7.26473235]
[1735188650054,10.48473235,195.01,194.91,7.26473235]
[1735188650254,2.5669,194.95,194.91,7.26473235]
[1735188650960,2.567,194.94,194.91,7.26473235]
[1735188651663,2.567,194.94,194.9,2.5675]
[1735188652161,10.48473235,195.01,194.9,2.5675]
[1735188652364,2.5672,194.93,194.9,2.5675]
[1735188653162,10.48473235,195.01,194.9,2.5675]
[1735188653364,2.567,194.94,194.9,2.5675]
[1735188655664,2.5669,194.96,194.92,2.5673]
[1735188656266,2.5666,194.97,194.94,2.567]
[1735188656468,3.1331,195.02,194.86,3.22]
[1735188656469,3.1331,195.02,194.92,7.26473235]
[1735188656663,3.22,195.01,194.92,7.26473235]
[1735188657168,2.5665,194.98,194.92,7.26473235]
[1735188658468,2.5665,194.98,194.94,2.5669]
[1735188658864,2.5665,194.98,194.92,7.26473235]
[1735188659066,2.5664,194.99,194.95,2.5669]
[1735188659566,2.5664,194.99,194.92,7.26473235]
[1735188659763,2.5664,194.99,194.96,2.5667]
[1735188660865,2.5663,195.0,194.96,2.5667]
[1735188661672,2.5663,195.0,194.97,2.5666]
[1735188662169,2.5663,195.0,194.94,7.26473235]
[1735188662364,2.5664,194.99,194.96,2.5668]
[1735188663868,2.5663,195.0,194.96,2.5668]
[1735188667370,2.5663,195.0,194.95,2.5669]
[1735188670473,2.5663,195.0,194.93,7.26473235]
[1735188670679,2.5661,195.01,194.93,7.26473235]
[1735188670979,8.78273235,195.02,194.93,7.26473235]
[1735188672481,3.22,195.04,194.95,7.26473235]
[1735188672681,10.48473235,195.04,194.97,7.26473235]
[1735188673083,10.48473235,195.04,194.99,2.5664]
[1735188674378,7.26473235,195.04,194.99,2.5664]
[1735188674578,2.566,195.02,194.98,2.5665]
[1735188675882,3.1105,195.06,195.0,2.5662]
[1735188676081,7.26473235,195.05,195.0,2.5662]
[1735188677474,9.83043235,195.05,195.0,2.5662]
[1735188678381,7.26473235,195.05,195.0,2.5662]
[1735188678584,2.566,195.02,194.98,2.5665]
[1735188679184,9.82143586,195.13,194.97,7.26473235]
[1735188679382,2.5658,195.03,194.97,7.26473235]
[1735188680183,2.5658,195.03,194.99,2.5663]
[1735188684289,2.566,195.02,194.98,2.5665]
[1735188684487,7.26473235,195.04,194.89,1.5343]
[1735188684683,7.26473235,195.02,194.89,1.5343]
[1735188684887,2.5666,194.97,194.93,9.83183235]
[1735188685288,2.5666,194.97,194.93,2.5671]
[1735188686586,2.5666,194.97,194.94,2.567]
[1735188687189,2.5665,194.98,194.94,9.83173235]
[1735188687493,3.22,195.03,194.96,7.26473235]
[1735188687688,2.566,195.02,194.98,7.26473235]
[1735188688295,7.26473235,195.06,194.98,7.26473235]
[1735188689387,2.5657,195.05,195.01,2.566]
[1735188689593,2.5657,195.05,194.98,7.26473235]
[1735188690187,2.5653,195.07,195.0,7.26473235]
[1735188690392,1.6502,195.09,195.02,7.26473235]
[1735188690592,13.65553235,195.11,195.02,7.26473235]
[1735188690790,3.1708,195.11,195.04,7.26473235]
[1735188690994,36.89489661,195.14,195.06,7.26473235]
[1735188691198,7.26473235,195.12,195.04,7.26473235]
[1735188692487,2.5651,195.09,195.05,2.5655]
[1735188692888,7.26473235,195.12,195.05,2.5655]
[1735188693995,7.26473235,195.12,195.06,2.5653]
[1735188694486,2.5648,195.11,195.04,7.26473235]
[1735188694685,2.5648,195.11,195.07,2.5653]
[1735188695491,2.5646,195.13,195.08,2.5651]
[1735188699099,7.26473235,195.14,195.06,7.26473235]
[1735188699298,2.5647,195.12,195.07,2.5653]
[1735188706106,2.5647,195.12,195.06,7.26473235]
[1735188706412,4.6594,195.17,195.1,7.26473235]
[1735188706809,2.5642,195.16,195.12,2.5645]
[1735188707005,7.26473235,195.2,195.12,7.26473235]
[1735188707311,10.46473235,195.2,195.12,7.26473235]
[1735188708114,7.26473235,195.2,195.12,7.26473235]
[1735188708314,2.5639,195.18,195.13,2.5644]
[1735188709009,4.8142,195.22,195.14,7.26473235]
[1735188709208,2.5635,195.21,195.16,7.26473235]
[1735188709412,4.8142,195.22,195.16,7.26473235]
[1735188709610,2.5637,195.2,195.16,7.26473235]
[1735188710206,2.5635,195.21,195.16,9.82873235]
[1735188710411,2.5635,195.21,195.16,7.26473235]
[1735188711514,2.5635,195.21,195.17,2.564]
[1735188717720,2.5633,195.23,195.18,7.26473235]
[1735188718122,2.563,195.25,195.21,2.5634]
[1735188718722,4.9033,195.32,195.2,7.26473235]
[1735188718920,4.9033,195.32,195.22,9.82803235]
[1735188718921,2.5628,195.26,195.22,9.82803235]
[1735188719122,4.9033,195.32,195.24,7.26473235]
[1735188719123,12.16803235,195.32,195.24,7.26473235]
[1735188720525,2.5627,195.28,195.24,7.26473235]
[1735188720917,12.16803235,195.32,195.2,3.2]
[1735188721123,12.16803235,195.32,195.24,7.26473235]
[1735188721517,2.5623,195.3,195.24,7.26473235]
[1735188721729,10.46473235,195.36,195.28,7.26473235]
[1735188722124,10.46473235,195.36,195.28,9.82723235]
[1735188722418,2.5621,195.32,195.28,7.26473235]
[1735188724418,4.8678,195.39,195.28,7.26473235]
[1735188724624,4.8678,195.39,195.32,7.26473235]
[1735188725230,2.5615,195.37,195.32,7.26473235]
[1735188727231,2.5615,195.36,195.32,7.26473235]
[1735188727523,4.8678,195.39,195.32,7.26473235]
[1735188729128,2.5614,195.37,195.32,7.26473235]
[1735188732629,2.5615,195.36,195.32,7.26473235]
[1735188732832,7.26473235,195.35,195.27,7.26473235]
[1735188733124,10.46473235,195.35,195.22,3.2]
[1735188733329,2.5624,195.3,195.26,7.26473235]
[1735188735431,10.46473235,195.35,195.26,7.26473235]
[1735188735926,7.26473235,195.32,195.24,7.26473235]
[1735188736232,2.5628,195.27,195.23,7.26473235]
[1735188737031,2.5628,195.27,195.23,9.82793235]
[1735188737626,2.5628,195.26,195.23,7.26473235]
[1735188737829,7.26473235,195.3,195.23,7.26473235]
[1735188738030,7.26473235,195.3,195.21,7.26473235]
[1735188738628,7.26473235,195.3,195.21,9.82823235]
[1735188739229,7.26473235,195.28,195.21,7.26473235]
[1735188739430,7.26473235,195.26,195.1,4.6254]
[1735188739645,7.26473235,195.24,195.17,7.26473235]
[1735188740139,7.26473235,195.24,195.1,4.6254]
[1735188740336,7.26473235,195.22,195.13,7.26473235]
[1735188740635,1.6635,195.21,195.13,7.26473235]
[1735188740835,7.26473235,195.2,195.13,7.26473235]
[1735188741032,2.5639,195.18,195.13,7.26473235]
[1735188741336,2.5639,195.18,195.13,7.18611104]
[1735188745938,7.26473235,195.2,195.1,2.5648]
[1735188745939,2.5642,195.16,195.1,2.5648]
[1735188746139,2.5642,195.16,195.12,7.26473235]
[1735188748133,2.5644,195.14,195.08,2.5651]
[1735188748434,7.26473235,195.18,195.1,7.26473235]
[1735188748641,2.5644,195.14,195.1,7.26473235]
[1735188749639,2.5641,195.17,195.12,7.26473235]
[1735188749945,1.6635,195.21,195.14,7.26473235]
[1735188750136,10.46473235,195.24,195.16,7.26473235]
[1735188750645,10.46473235,195.24,195.16,9.82873235]
[1735188751042,2.5635,195.21,195.16,7.26473235]
[1735188751246,7.26473235,195.24,195.16,7.26473235]
[1735188752548,2.5635,195.21,195.16,9.82883235]
[1735188753349,2.5633,195.23,195.17,2.564]
[1735188753553,2.5633,195.23,195.18,7.26473235]
[1735188753748,7.26473235,195.24,195.18,7.26473235]
[1735188755650,2.5634,195.22,195.18,7.26473235]
[1735188756352,2.5636,195.2,195.16,7.26473235]
[1735188761168,7.26473235,195.24,195.16,7.26473235]
[1735188761465,7.26473235,195.22,195.14,9.82913235]
[1735188762367,2.5638,195.19,195.14,9.82913235]
[1735188762568,7.26473235,195.24,195.16,7.26473235]
[1735188763466,2.5636,195.21,195.16,9.82883235]
[1735188765768,2.5638,195.19,195.16,7.26473235]
[1735188774375,2.5641,195.16,195.11,2.5647]
[1735188774574,7.26473235,195.17,195.09,7.26473235]
[1735188775175,7.26473235,195.15,195.07,7.26473235]
[1735188775370,2.5653,195.08,195.05,7.0680038]
[1735188775576,2.5653,195.08,195.04,7.26473235]
[1735188776173,7.26473235,195.11,195.04,7.26473235]
[1735188778473,3.2,195.12,195.04,7.26473235]
[1735188779178,2.5649,195.1,195.05,2.5655]
[1735188779374,3.2,195.12,195.06,7.26473235]
[1735188780074,2.5648,195.11,195.06,9.83003235]
[1735188780579,7.26473235,195.13,195.06,7.26473235]
[1735188780774,2.5652,195.08,195.04,7.26473235]
[1735188781277,2.5651,195.09,195.04,7.26473235]
[1735188782074,2.5652,195.08,195.04,7.26473235]
[1735188783474,2.5651,195.09,195.04,9.83033235]
[1735188784480,7.26473235,195.13,195.04,7.26473235]
[1735188784680,7.26473235,195.11,195.02,7.26473235]
[1735188784879,7.26473235,195.09,195.02,7.26473235]
[1735188785079,2.5659,195.03,195.0,8.86873235]
[1735188785271,2.5659,195.03,195.0,7.26473235]
[1735188787776,2.5661,195.02,194.93,1.5939]
[1735188788080,7.26473235,195.05,194.97,7.26473235]
[1735188788581,2.5663,195.0,194.97,7.26473235]
[1735188790881,7.26473235,195.05,194.97,7.26473235]
[1735188791181,4.8655,195.07,194.99,7.26473235]
[1735188791485,7.26473235,195.06,194.99,9.83103235]
[1735188792184,4.8655,195.07,194.99,7.26473235]
[1735188792385,4.8655,195.07,195.01,7.26473235]
[1735188792988,7.4308,195.07,195.02,2.5659]
[1735188793182,2.5653,195.07,195.02,2.5659]
[1735188793486,7.26473235,195.08,195.01,7.26473235]
[1735188793689,2.5655,195.06,195.01,7.26473235]
[1735188794681,4.6843,195.13,195.03,7.26473235]
[1735188794887,2.5648,195.11,195.06,2.5654]
[1735188795982,11.94903235,195.13,195.06,2.5654]
[1735188795983,2.565,195.1,195.06,2.5654]
[1735188801187,7.26473235,195.11,195.05,7.26473235]
[1735188801383,2.5654,195.07,195.02,2.5659]
[1735188801692,2.5654,195.07,195.01,7.26473235]
[1735188802390,2.5652,195.08,195.01,7.26473235]
[1735188802892,2.5652,195.08,195.03,7.26473235]
[1735188803094,2.565,195.09,195.05,2.5656]
[1735188804392,2.5649,195.1,195.05,2.5656]
[1735188805587,7.26473235,195.11,194.9,7.08464525]
[1735188805792,7.26473235,195.09,195.01,7.26473235]
[1735188806394,2.5656,195.06,195.01,9.83083235]
[1735188806789,2.5656,195.06,195.01,7.26473235]
[1735188807187,4.6843,195.13,195.03,9.83043235]
[1735188807188,2.5653,195.08,195.03,9.83043235]
[1735188809494,7.26473235,195.11,195.03,7.26473235]
[1735188809799,2.5654,195.07,195.03,7.26473235]
[1735188814899,2.5654,195.07,195.03,9.83053235]
[1735188815394,2.5651,195.09,195.03,9.83053235]
[1735188817599,9.82963235,195.11,195.05,2.5655]
[1735188817901,7.26473235,195.11,195.05,2.5655]
[1735188818102,2.565,195.1,195.05,2.5655]
[1735188818298,2.565,195.1,195.03,7.26473235]
[1735188818604,2.565,195.1,195.05,2.5656]